[Event "Titled Tuesday Blitz June 13 Late 2023"]
[White "Andreikin, Dmitry"]
[Black "Anton Guijarro, David"]
[WhiteFideId "4158814"]
[BlackFideId "2285525"]
[WhiteElo "2736"]
[BlackElo "2618"]
[Result "0-1"]
[Round "9"]
[TimeControl "180+2"]
[Date "2023.06.13"]
[WhiteClock "0:00:03"]
[BlackClock "0:00:20"]
[Board "5"]

1. c4 {[%clk 0:03:00]}  e6 {[%clk 0:02:59]} 2. Nf3 {[%clk 0:02:59]}  d5 {[%clk 0:02:59]} 3. g3 {[%clk 0:02:59]}  dxc4 {[%clk 0:02:59]} 4. Bg2 {[%clk 0:02:59]}  a6 {[%clk 0:02:59]} 5. O-O {[%clk 0:02:59]}  Nf6 {[%clk 0:02:59]} 6. Qc2 {[%clk 0:02:57]}  c5 {[%clk 0:02:57]} 7. Ne5 {[%clk 0:02:54]}  Be7 {[%clk 0:02:41]} 8. a4 {[%clk 0:02:54]}  O-O {[%clk 0:02:25]} 9. Na3 {[%clk 0:02:54]}  Ra7 {[%clk 0:02:22]} 10. Naxc4 {[%clk 0:02:43]}  b6 {[%clk 0:02:21]} 11. a5 {[%clk 0:02:36]}  b5 {[%clk 0:02:18]} 12. Nb6 {[%clk 0:02:36]}  Bb7 {[%clk 0:02:17]} 13. Bxb7 {[%clk 0:02:21]}  Rxb7 {[%clk 0:02:17]} 14. d3 {[%clk 0:02:21]}  Nd5 {[%clk 0:02:12]} 15. Be3 {[%clk 0:02:12]}  Nxe3 {[%clk 0:01:56]} 16. fxe3 {[%clk 0:02:13]}  Qd6 {[%clk 0:01:51]} 17. d4 {[%clk 0:02:10]}  cxd4 {[%clk 0:01:49]} 18. Nxf7 {[%clk 0:02:07]}  Rxf7 {[%clk 0:01:32]} 19. Nc8 {[%clk 0:01:37]}  Qc7 {[%clk 0:01:04]} 20. Nxe7+ {[%clk 0:01:21]}  Rxe7 {[%clk 0:01:05]} 21. Qe4 {[%clk 0:01:20]}  Nd7 {[%clk 0:01:05]} 22. Rac1 {[%clk 0:01:19]}  Qb8 {[%clk 0:00:56]} 23. Rc6 {[%clk 0:01:18]}  Nf6 {[%clk 0:00:55]} 24. Qxd4 {[%clk 0:01:16]}  Rbd7 {[%clk 0:00:53]} 25. Qc5 {[%clk 0:01:10]}  Rc7 {[%clk 0:00:52]} 26. Qd6 {[%clk 0:01:07]}  Ne8 {[%clk 0:00:27]} 27. Qe5 {[%clk 0:00:44]}  Qc8 {[%clk 0:00:26]} 28. Rb6 {[%clk 0:00:33]}  Rc1 {[%clk 0:00:26]} 29. Rb8 {[%clk 0:00:26]}  Rxf1+ {[%clk 0:00:26]} 30. Kxf1 {[%clk 0:00:27]}  Qc6 {[%clk 0:00:26]} 31. Kg1 {[%clk 0:00:23]}  Rf7 {[%clk 0:00:21]} 32. h4 {[%clk 0:00:21]}  Rf8 {[%clk 0:00:20]} 33. Rb6 {[%clk 0:00:14]}  Qc1+ {[%clk 0:00:19]} 34. Kh2 {[%clk 0:00:14]}  Qf1 {[%clk 0:00:20]} 35. Qxe6+ {[%clk 0:00:03]}  Kh8 {[%clk 0:00:20]} 0-1


[Site "https://www.chess.com"]

[Event "Titled Tuesday Blitz June 13 Late 2023"]
[White "Hansen, Eric"]
[Black "Eljanov, Pavel"]
[WhiteFideId "2606771"]
[BlackFideId "14102951"]
[WhiteElo "2561"]
[BlackElo "2598"]
[Result "0-1"]
[Round "9"]
[TimeControl "180+2"]
[Date "2023.06.13"]
[WhiteClock "0:00:00"]
[BlackClock "0:00:02"]
[Board "7"]

1. e4 {[%clk 0:03:00]}  e5 {[%clk 0:02:59]} 2. Nf3 {[%clk 0:03:00]}  Nc6 {[%clk 0:03:00]} 3. Bb5 {[%clk 0:03:00]}  a6 {[%clk 0:03:00]} 4. Ba4 {[%clk 0:03:00]}  Nf6 {[%clk 0:03:01]} 5. O-O {[%clk 0:02:54]}  Be7 {[%clk 0:03:01]} 6. Re1 {[%clk 0:02:54]}  b5 {[%clk 0:03:01]} 7. Bb3 {[%clk 0:02:55]}  O-O {[%clk 0:03:01]} 8. h3 {[%clk 0:02:54]}  Bb7 {[%clk 0:03:01]} 9. d3 {[%clk 0:02:53]}  d5 {[%clk 0:03:02]} 10. exd5 {[%clk 0:02:52]}  Nxd5 {[%clk 0:03:03]} 11. a4 {[%clk 0:02:46]}  Ndb4 {[%clk 0:02:19]} 12. axb5 {[%clk 0:02:37]}  axb5 {[%clk 0:02:19]} 13. Rxa8 {[%clk 0:02:36]}  Bxa8 {[%clk 0:02:19]} 14. Na3 {[%clk 0:02:32]}  Na5 {[%clk 0:02:12]} 15. Nxe5 {[%clk 0:01:40]}  Nxb3 {[%clk 0:02:12]} 16. cxb3 {[%clk 0:01:41]}  Bf6 {[%clk 0:01:56]} 17. Ng4 {[%clk 0:01:33]}  Bd4 {[%clk 0:01:31]} 18. Nc2 {[%clk 0:01:06]}  Nxc2 {[%clk 0:01:13]} 19. Qxc2 {[%clk 0:01:05]}  h5 {[%clk 0:01:04]} 20. Nh2 {[%clk 0:00:53]}  c5 {[%clk 0:00:58]} 21. Be3 {[%clk 0:00:52]}  Re8 {[%clk 0:00:58]} 22. Re2 {[%clk 0:00:49]}  Qe7 {[%clk 0:00:39]} 23. Kf1 {[%clk 0:00:30]}  Be5 {[%clk 0:00:20]} 24. Bxc5 {[%clk 0:00:19]}  Qd7 {[%clk 0:00:20]} 25. Kg1 {[%clk 0:00:09]}  Bxh2+ {[%clk 0:00:20]} 26. Kxh2 {[%clk 0:00:10]}  Rxe2 {[%clk 0:00:21]} 27. Qxe2 {[%clk 0:00:09]}  Qc7+ {[%clk 0:00:21]} 28. Kg1 {[%clk 0:00:09]}  Qxc5 {[%clk 0:00:21]} 29. Qe8+ {[%clk 0:00:08]}  Qf8 {[%clk 0:00:21]} 30. Qxb5 {[%clk 0:00:08]}  g6 {[%clk 0:00:20]} 31. Qe5 {[%clk 0:00:07]}  Qd8 {[%clk 0:00:19]} 32. Qg3 {[%clk 0:00:04]}  Qd5 {[%clk 0:00:16]} 33. b4 {[%clk 0:00:04]}  Bc6 {[%clk 0:00:17]} 34. h4 {[%clk 0:00:04]}  Kg7 {[%clk 0:00:17]} 35. Kh2 {[%clk 0:00:02]}  Bb5 {[%clk 0:00:17]} 36. f3 {[%clk 0:00:02]}  Bxd3 {[%clk 0:00:17]} 37. Qf4 {[%clk 0:00:03]}  Bb5 {[%clk 0:00:16]} 38. Kg3 {[%clk 0:00:03]}  f6 {[%clk 0:00:16]} 39. Qc7+ {[%clk 0:00:03]}  Qf7 {[%clk 0:00:14]} 40. Qd6 {[%clk 0:00:03]}  Qd7 {[%clk 0:00:14]} 41. Qc5 {[%clk 0:00:03]}  Kf7 {[%clk 0:00:14]} 42. Kf2 {[%clk 0:00:03]}  Bc6 {[%clk 0:00:14]} 43. Qc4+ {[%clk 0:00:02]}  Qd5 {[%clk 0:00:14]} 44. Qc3 {[%clk 0:00:02]}  Kg7 {[%clk 0:00:12]} 45. Qe3 {[%clk 0:00:02]}  Qe5 {[%clk 0:00:11]} 46. Qd2 {[%clk 0:00:02]}  Qd5 {[%clk 0:00:09]} 47. Qc3 {[%clk 0:00:02]}  Kf7 {[%clk 0:00:10]} 48. Qe3 {[%clk 0:00:02]}  Qd7 {[%clk 0:00:10]} 49. Qc3 {[%clk 0:00:02]}  Bd5 {[%clk 0:00:09]} 50. Kg1 {[%clk 0:00:03]}  Qc6 {[%clk 0:00:07]} 51. Qd4 {[%clk 0:00:02]}  Be6 {[%clk 0:00:07]} 52. Qa7+ {[%clk 0:00:02]}  Qd7 {[%clk 0:00:07]} 53. Qe3 {[%clk 0:00:02]}  Bd5 {[%clk 0:00:06]} 54. Qd4 {[%clk 0:00:02]}  Qc6 {[%clk 0:00:05]} 55. Qf4 {[%clk 0:00:02]}  Be6 {[%clk 0:00:05]} 56. Kh2 {[%clk 0:00:02]}  Ke7 {[%clk 0:00:05]} 57. Kg1 {[%clk 0:00:01]}  Qb6+ {[%clk 0:00:05]} 58. Kh1 {[%clk 0:00:02]}  Qd6 {[%clk 0:00:04]} 59. Qe4 {[%clk 0:00:02]}  Kf7 {[%clk 0:00:04]} 60. Kg1 {[%clk 0:00:01]}  Qd5 {[%clk 0:00:03]} 61. Qf4 {[%clk 0:00:02]}  Qe5 {[%clk 0:00:03]} 62. Qd2 {[%clk 0:00:01]}  g5 {[%clk 0:00:04]} 63. hxg5 {[%clk 0:00:01]}  fxg5 {[%clk 0:00:04]} 64. Qc2 {[%clk 0:00:01]}  Kg7 {[%clk 0:00:04]} 65. Qd2 {[%clk 0:00:01]}  h4 {[%clk 0:00:04]} 66. Kf2 {[%clk 0:00:01]}  Kf6 {[%clk 0:00:04]} 67. Kg1 {[%clk 0:00:02]}  Qf4 {[%clk 0:00:04]} 68. Qd8+ {[%clk 0:00:02]}  Kg6 {[%clk 0:00:04]} 69. Qe8+ {[%clk 0:00:02]}  Bf7 {[%clk 0:00:04]} 70. Qe1 {[%clk 0:00:00]}  Qg3 {[%clk 0:00:02]} 0-1


[Site "https://www.chess.com"]

[Event "Titled Tuesday Blitz June 13 Late 2023"]
[White "Dardha, Daniel"]
[Black "Van Foreest, Jorden"]
[WhiteFideId "240990"]
[BlackFideId "1039784"]
[WhiteElo "2572"]
[BlackElo "2633"]
[Result "1-0"]
[Round "9"]
[TimeControl "180+2"]
[Date "2023.06.13"]
[WhiteClock "0:00:07"]
[BlackClock "0:00:12"]
[Board "8"]

1. d4 {[%clk 0:02:20]}  d6 {[%clk 0:02:28]} 2. e4 {[%clk 0:02:05]}  Nf6 {[%clk 0:02:26]} 3. Nc3 {[%clk 0:02:02]}  Nbd7 {[%clk 0:02:26]} 4. g4 {[%clk 0:02:00]}  h6 {[%clk 0:02:25]} 5. h4 {[%clk 0:01:57]}  e5 {[%clk 0:02:10]} 6. g5 {[%clk 0:01:56]}  hxg5 {[%clk 0:02:10]} 7. Bxg5 {[%clk 0:01:57]}  exd4 {[%clk 0:02:10]} 8. Qxd4 {[%clk 0:01:58]}  Be7 {[%clk 0:02:03]} 9. f4 {[%clk 0:01:55]}  Nc5 {[%clk 0:01:55]} 10. f5 {[%clk 0:01:42]}  Nh5 {[%clk 0:01:53]} 11. Bxe7 {[%clk 0:01:39]}  Qxe7 {[%clk 0:01:43]} 12. Nd5 {[%clk 0:01:37]}  Qd8 {[%clk 0:01:41]} 13. O-O-O {[%clk 0:01:31]}  c6 {[%clk 0:01:36]} 14. Nc3 {[%clk 0:01:24]}  Qf6 {[%clk 0:01:35]} 15. Qf2 {[%clk 0:01:08]}  Bd7 {[%clk 0:01:30]} 16. Nf3 {[%clk 0:00:58]}  O-O-O {[%clk 0:01:30]} 17. e5 {[%clk 0:00:52]}  Qh6+ {[%clk 0:01:29]} 18. Kb1 {[%clk 0:00:49]}  Bxf5 {[%clk 0:01:30]} 19. exd6 {[%clk 0:00:43]}  b6 {[%clk 0:01:07]} 20. Ne5 {[%clk 0:00:41]}  Qf6 {[%clk 0:00:38]} 21. Nxc6 {[%clk 0:00:20]}  Rxd6 {[%clk 0:00:38]} 22. Rxd6 {[%clk 0:00:16]}  Qxd6 {[%clk 0:00:27]} 23. Qxf5+ {[%clk 0:00:15]}  Kb7 {[%clk 0:00:28]} 24. Bg2 {[%clk 0:00:13]}  Nf4 {[%clk 0:00:27]} 25. Qxf7+ {[%clk 0:00:11]}  Nd7 {[%clk 0:00:25]} 26. Be4 {[%clk 0:00:10]}  Rf8 {[%clk 0:00:22]} 27. Ne5+ {[%clk 0:00:07]}  Kc7 {[%clk 0:00:12]} 28. Nb5+ {[%clk 0:00:07]} 1-0


[Site "https://www.chess.com"]

[Event "Titled Tuesday Blitz June 13 Late 2023"]
[White "Bortnyk, Mykola"]
[Black "Rodrigue-Lemieux, Shawn"]
[WhiteFideId "14120836"]
[BlackFideId "2620049"]
[WhiteElo "2592"]
[BlackElo "2405"]
[Result "0-1"]
[Round "9"]
[TimeControl "180+2"]
[Date "2023.06.13"]
[WhiteClock "0:01:28"]
[BlackClock "0:01:53"]
[Board "9"]

1. e4 {[%clk 0:03:00]}  c6 {[%clk 0:02:59]} 2. d4 {[%clk 0:02:59]}  d5 {[%clk 0:03:00]} 3. exd5 {[%clk 0:03:00]}  cxd5 {[%clk 0:03:01]} 4. c4 {[%clk 0:03:01]}  Nf6 {[%clk 0:03:01]} 5. Nc3 {[%clk 0:03:01]}  Nc6 {[%clk 0:03:02]} 6. Bg5 {[%clk 0:03:01]}  dxc4 {[%clk 0:03:01]} 7. d5 {[%clk 0:03:01]}  Ne5 {[%clk 0:03:01]} 8. Nf3 {[%clk 0:02:59]}  Bg4 {[%clk 0:02:47]} 9. Bxc4 {[%clk 0:02:59]}  Nxc4 {[%clk 0:02:44]} 10. Qa4+ {[%clk 0:02:59]}  Qd7 {[%clk 0:02:45]} 11. Qxc4 {[%clk 0:02:58]}  Rc8 {[%clk 0:02:45]} 12. Qd4 {[%clk 0:02:56]}  Bxf3 {[%clk 0:02:45]} 13. gxf3 {[%clk 0:02:57]}  h6 {[%clk 0:02:23]} 14. Bxf6 {[%clk 0:02:42]}  exf6 {[%clk 0:02:24]} 15. O-O-O {[%clk 0:02:42]}  Bc5 {[%clk 0:02:23]} 16. Qe4+ {[%clk 0:02:30]}  Kf8 {[%clk 0:02:22]} 17. Kb1 {[%clk 0:02:27]}  Bd6 {[%clk 0:02:19]} 18. f4 {[%clk 0:02:18]}  g6 {[%clk 0:02:08]} 19. Qd4 {[%clk 0:02:16]}  Kg7 {[%clk 0:02:05]} 20. Ne4 {[%clk 0:02:15]}  Qf5 {[%clk 0:02:05]} 21. Ka1 {[%clk 0:02:14]}  Bxf4 {[%clk 0:02:03]} 22. Ng3 {[%clk 0:02:02]}  Qe5 {[%clk 0:02:01]} 23. Kb1 {[%clk 0:01:46]}  Rc1+ {[%clk 0:02:00]} 24. Rxc1 {[%clk 0:01:40]}  Qxd4 {[%clk 0:02:01]} 25. Rcd1 {[%clk 0:01:39]}  Qb6 {[%clk 0:01:59]} 26. Ne4 {[%clk 0:01:34]}  Be5 {[%clk 0:01:52]} 27. Rd2 {[%clk 0:01:33]}  f5 {[%clk 0:01:53]} 28. Ng3 {[%clk 0:01:31]}  Rd8 {[%clk 0:01:53]} 29. Rhd1 {[%clk 0:01:28]}  Rxd5 {[%clk 0:01:53]} 0-1


[Site "https://www.chess.com"]

[Event "Titled Tuesday Blitz June 13 Late 2023"]
[White "Mekhitarian, Krikor Sevag"]
[Black "Martinez Alcantara, Jose Eduardo"]
[WhiteFideId "2107660"]
[BlackFideId "3805662"]
[WhiteElo "2604"]
[BlackElo "2711"]
[Result "0-1"]
[Round "9"]
[TimeControl "180+2"]
[Date "2023.06.13"]
[WhiteClock "0:00:05"]
[BlackClock "0:00:25"]
[Board "10"]

1. Nf3 {[%clk 0:02:59]}  d5 {[%clk 0:02:50]} 2. c4 {[%clk 0:02:45]}  e6 {[%clk 0:02:50]} 3. d4 {[%clk 0:02:41]}  a6 {[%clk 0:02:49]} 4. cxd5 {[%clk 0:02:30]}  exd5 {[%clk 0:02:49]} 5. Nc3 {[%clk 0:02:30]}  c6 {[%clk 0:02:49]} 6. Bf4 {[%clk 0:02:22]}  Bd6 {[%clk 0:02:48]} 7. Bxd6 {[%clk 0:02:21]}  Qxd6 {[%clk 0:02:49]} 8. e3 {[%clk 0:02:22]}  Ne7 {[%clk 0:02:50]} 9. Bd3 {[%clk 0:02:21]}  O-O {[%clk 0:02:39]} 10. Qc2 {[%clk 0:02:15]}  h6 {[%clk 0:02:39]} 11. O-O {[%clk 0:02:09]}  Nd7 {[%clk 0:02:37]} 12. Rab1 {[%clk 0:02:09]}  Nf6 {[%clk 0:02:16]} 13. Ne5 {[%clk 0:02:04]}  c5 {[%clk 0:02:12]} 14. Qd2 {[%clk 0:01:59]}  cxd4 {[%clk 0:01:54]} 15. exd4 {[%clk 0:01:57]}  Bf5 {[%clk 0:01:55]} 16. Rfe1 {[%clk 0:01:52]}  Rad8 {[%clk 0:01:53]} 17. Rbc1 {[%clk 0:01:41]}  Rfe8 {[%clk 0:01:52]} 18. h3 {[%clk 0:01:41]}  Bxd3 {[%clk 0:01:41]} 19. Qxd3 {[%clk 0:01:39]}  Qb4 {[%clk 0:01:41]} 20. a3 {[%clk 0:01:13]}  Qa5 {[%clk 0:01:18]} 21. Re2 {[%clk 0:01:08]}  Nc8 {[%clk 0:01:08]} 22. Rce1 {[%clk 0:01:00]}  Nd6 {[%clk 0:01:00]} 23. Ng4 {[%clk 0:01:00]}  Nfe4 {[%clk 0:00:56]} 24. Rc1 {[%clk 0:00:38]}  Nxc3 {[%clk 0:00:54]} 25. Rxe8+ {[%clk 0:00:38]}  Rxe8 {[%clk 0:00:55]} 26. Qxc3 {[%clk 0:00:37]}  Qxc3 {[%clk 0:00:46]} 27. Rxc3 {[%clk 0:00:38]}  Re1+ {[%clk 0:00:46]} 28. Kh2 {[%clk 0:00:39]}  Re2 {[%clk 0:00:47]} 29. Rc7 {[%clk 0:00:27]}  Rxb2 {[%clk 0:00:41]} 30. Rd7 {[%clk 0:00:23]}  Ne4 {[%clk 0:00:29]} 31. Rxd5 {[%clk 0:00:17]}  Nxf2 {[%clk 0:00:29]} 32. Rd8+ {[%clk 0:00:17]}  Kh7 {[%clk 0:00:29]} 33. Nxf2 {[%clk 0:00:11]}  Rxf2 {[%clk 0:00:30]} 34. Rd7 {[%clk 0:00:12]}  b5 {[%clk 0:00:30]} 35. Ra7 {[%clk 0:00:11]}  Rf6 {[%clk 0:00:30]} 36. Kg3 {[%clk 0:00:10]}  Rd6 {[%clk 0:00:29]} 37. Kf3 {[%clk 0:00:10]}  Rxd4 {[%clk 0:00:28]} 38. Rxa6 {[%clk 0:00:10]}  Ra4 {[%clk 0:00:26]} 39. Rxa4 {[%clk 0:00:06]}  bxa4 {[%clk 0:00:27]} 40. Ke4 {[%clk 0:00:07]}  g5 {[%clk 0:00:25]} 41. g4 {[%clk 0:00:05]}  Kg6 {[%clk 0:00:25]} 42. Ke5 {[%clk 0:00:05]}  h5 {[%clk 0:00:22]} 43. Ke4 {[%clk 0:00:03]}  hxg4 {[%clk 0:00:22]} 44. hxg4 {[%clk 0:00:03]}  f5+ {[%clk 0:00:23]} 45. gxf5+ {[%clk 0:00:02]}  Kf6 {[%clk 0:00:23]} 46. Kf3 {[%clk 0:00:02]}  Kxf5 {[%clk 0:00:24]} 47. Kg3 {[%clk 0:00:02]}  Ke4 {[%clk 0:00:21]} 48. Kg4 {[%clk 0:00:03]}  Kd3 {[%clk 0:00:22]} 49. Kxg5 {[%clk 0:00:04]}  Kc3 {[%clk 0:00:23]} 50. Kf4 {[%clk 0:00:04]}  Kb3 {[%clk 0:00:24]} 51. Ke3 {[%clk 0:00:05]}  Kxa3 {[%clk 0:00:24]} 52. Kd2 {[%clk 0:00:05]}  Kb2 {[%clk 0:00:25]} 0-1


[Site "https://www.chess.com"]

[Event "Titled Tuesday Blitz June 13 Late 2023"]
[White "Vazquez, Guillermo"]
[Black "Jumabayev, Rinat"]
[WhiteFideId "3702308"]
[BlackFideId "13702661"]
[WhiteElo "2543"]
[BlackElo "2561"]
[Result "1-0"]
[Round "9"]
[TimeControl "180+2"]
[Date "2023.06.13"]
[WhiteClock "0:00:26"]
[BlackClock "0:00:00"]
[Board "12"]

1. b3 {[%clk 0:02:52]}  e5 {[%clk 0:02:59]} 2. Bb2 {[%clk 0:02:53]}  Nc6 {[%clk 0:02:59]} 3. c4 {[%clk 0:02:53]}  Nf6 {[%clk 0:02:59]} 4. e3 {[%clk 0:02:52]}  d5 {[%clk 0:02:58]} 5. cxd5 {[%clk 0:02:53]}  Nxd5 {[%clk 0:02:59]} 6. a3 {[%clk 0:02:54]}  a5 {[%clk 0:02:44]} 7. Qc2 {[%clk 0:02:48]}  Bd6 {[%clk 0:02:37]} 8. Nf3 {[%clk 0:02:39]}  O-O {[%clk 0:02:36]} 9. d3 {[%clk 0:02:37]}  Kh8 {[%clk 0:02:31]} 10. Nbd2 {[%clk 0:02:37]}  f5 {[%clk 0:02:30]} 11. g3 {[%clk 0:02:31]}  Qe7 {[%clk 0:02:17]} 12. Bg2 {[%clk 0:02:30]}  Be6 {[%clk 0:02:17]} 13. O-O {[%clk 0:02:30]}  Rad8 {[%clk 0:02:11]} 14. Nc4 {[%clk 0:02:27]}  Bg8 {[%clk 0:02:07]} 15. Rfe1 {[%clk 0:02:11]}  Nf6 {[%clk 0:01:57]} 16. Nh4 {[%clk 0:02:09]}  Qe6 {[%clk 0:01:47]} 17. Bh3 {[%clk 0:02:06]}  Ng4 {[%clk 0:01:11]} 18. Qe2 {[%clk 0:01:40]}  Bc5 {[%clk 0:00:35]} 19. Nxf5 {[%clk 0:01:22]}  Qxf5 {[%clk 0:00:34]} 20. Bxg4 {[%clk 0:01:22]}  Qxd3 {[%clk 0:00:35]} 21. Rad1 {[%clk 0:00:56]}  Qxb3 {[%clk 0:00:25]} 22. Rxd8 {[%clk 0:00:56]}  Rxd8 {[%clk 0:00:19]} 23. Nxe5 {[%clk 0:00:56]}  Nxe5 {[%clk 0:00:18]} 24. Bxe5 {[%clk 0:00:57]}  Bxa3 {[%clk 0:00:15]} 25. Bf5 {[%clk 0:00:49]}  Bb4 {[%clk 0:00:13]} 26. Qg4 {[%clk 0:00:46]}  Qf7 {[%clk 0:00:13]} 27. Rc1 {[%clk 0:00:45]}  c6 {[%clk 0:00:13]} 28. h4 {[%clk 0:00:45]}  Rd5 {[%clk 0:00:12]} 29. Be6 {[%clk 0:00:40]}  Qe7 {[%clk 0:00:04]} 30. Bxd5 {[%clk 0:00:38]}  Bxd5 {[%clk 0:00:05]} 31. Qf4 {[%clk 0:00:37]}  Kg8 {[%clk 0:00:05]} 32. e4 {[%clk 0:00:36]}  Bf7 {[%clk 0:00:04]} 33. Rd1 {[%clk 0:00:35]}  h6 {[%clk 0:00:03]} 34. Qf5 {[%clk 0:00:28]}  Be6 {[%clk 0:00:00]} 35. Qg6 {[%clk 0:00:26]} 1-0


[Site "https://www.chess.com"]

[Event "Titled Tuesday Blitz June 13 Late 2023"]
[White "Hambleton, Aman"]
[Black "Aravindh, Chithambaram VR."]
[WhiteFideId "2606577"]
[BlackFideId "5072786"]
[WhiteElo "2511"]
[BlackElo "2596"]
[Result "1-0"]
[Round "9"]
[TimeControl "180+2"]
[Date "2023.06.13"]
[WhiteClock "0:00:06"]
[BlackClock "0:00:00"]
[Board "16"]

1. d4 {[%clk 0:03:00]}  Nf6 {[%clk 0:02:50]} 2. Bf4 {[%clk 0:03:00]}  b6 {[%clk 0:02:49]} 3. e3 {[%clk 0:02:59]}  Bb7 {[%clk 0:02:49]} 4. Nf3 {[%clk 0:02:59]}  g6 {[%clk 0:02:48]} 5. h3 {[%clk 0:02:59]}  Bg7 {[%clk 0:02:49]} 6. Be2 {[%clk 0:02:57]}  O-O {[%clk 0:02:50]} 7. O-O {[%clk 0:02:57]}  d6 {[%clk 0:02:50]} 8. Bh2 {[%clk 0:02:58]}  Nbd7 {[%clk 0:02:50]} 9. a4 {[%clk 0:02:58]}  a6 {[%clk 0:02:49]} 10. c4 {[%clk 0:02:57]}  Ne4 {[%clk 0:02:48]} 11. a5 {[%clk 0:02:52]}  bxa5 {[%clk 0:02:46]} 12. Nc3 {[%clk 0:02:51]}  c5 {[%clk 0:02:43]} 13. Qa4 {[%clk 0:02:48]}  cxd4 {[%clk 0:02:30]} 14. exd4 {[%clk 0:02:49]}  Rc8 {[%clk 0:02:30]} 15. Qxa5 {[%clk 0:02:32]}  Qxa5 {[%clk 0:01:48]} 16. Rxa5 {[%clk 0:02:33]}  Nxc3 {[%clk 0:01:48]} 17. bxc3 {[%clk 0:02:33]}  Bxf3 {[%clk 0:01:49]} 18. gxf3 {[%clk 0:01:48]}  Nb6 {[%clk 0:01:42]} 19. c5 {[%clk 0:01:40]}  dxc5 {[%clk 0:01:43]} 20. Bxa6 {[%clk 0:01:41]}  Ra8 {[%clk 0:01:25]} 21. dxc5 {[%clk 0:01:31]}  Bxc3 {[%clk 0:01:24]} 22. Rb5 {[%clk 0:01:16]}  Nc4 {[%clk 0:01:18]} 23. Bb7 {[%clk 0:01:07]}  Ra3 {[%clk 0:00:27]} 24. c6 {[%clk 0:00:49]}  Nd2 {[%clk 0:00:24]} 25. c7 {[%clk 0:00:26]}  Nxf1 {[%clk 0:00:24]} 26. Kxf1 {[%clk 0:00:26]}  Bd4 {[%clk 0:00:20]} 27. c8=Q {[%clk 0:00:06]}  Rxc8 {[%clk 0:00:20]} 28. Bxc8 {[%clk 0:00:07]}  Rxf3 {[%clk 0:00:20]} 29. Bg3 {[%clk 0:00:06]}  Kg7 {[%clk 0:00:18]} 30. Rd5 {[%clk 0:00:04]}  Bf6 {[%clk 0:00:17]} 31. Bg4 {[%clk 0:00:02]}  Ra3 {[%clk 0:00:16]} 32. Kg2 {[%clk 0:00:02]}  h5 {[%clk 0:00:16]} 33. Bf3 {[%clk 0:00:02]}  Ra2 {[%clk 0:00:14]} 34. Rd1 {[%clk 0:00:02]}  Rb2 {[%clk 0:00:13]} 35. Bf4 {[%clk 0:00:02]}  Ra2 {[%clk 0:00:11]} 36. Be3 {[%clk 0:00:02]}  Rc2 {[%clk 0:00:10]} 37. Be4 {[%clk 0:00:02]}  Rc4 {[%clk 0:00:10]} 38. Kf3 {[%clk 0:00:02]}  Ra4 {[%clk 0:00:09]} 39. Bd3 {[%clk 0:00:03]}  Rh4 {[%clk 0:00:08]} 40. Kg2 {[%clk 0:00:03]}  Ra4 {[%clk 0:00:08]} 41. Rc1 {[%clk 0:00:03]}  Ra3 {[%clk 0:00:08]} 42. Be2 {[%clk 0:00:03]}  Ra2 {[%clk 0:00:08]} 43. Bf3 {[%clk 0:00:04]}  Be5 {[%clk 0:00:07]} 44. Rc5 {[%clk 0:00:04]}  Bf6 {[%clk 0:00:08]} 45. Rb5 {[%clk 0:00:03]}  Rc2 {[%clk 0:00:07]} 46. Rb7 {[%clk 0:00:04]}  Ra2 {[%clk 0:00:07]} 47. Bc5 {[%clk 0:00:04]}  Kf8 {[%clk 0:00:05]} 48. Rb8+ {[%clk 0:00:03]}  Kg7 {[%clk 0:00:05]} 49. Rb7 {[%clk 0:00:04]}  Kf8 {[%clk 0:00:05]} 50. Kg1 {[%clk 0:00:03]}  Rc2 {[%clk 0:00:04]} 51. Rb8+ {[%clk 0:00:03]}  Kg7 {[%clk 0:00:04]} 52. Rb5 {[%clk 0:00:03]}  Rc3 {[%clk 0:00:04]} 53. Kg2 {[%clk 0:00:03]}  Rc2 {[%clk 0:00:05]} 54. Be4 {[%clk 0:00:03]}  Rc4 {[%clk 0:00:05]} 55. Bd3 {[%clk 0:00:02]}  Rc3 {[%clk 0:00:05]} 56. Be2 {[%clk 0:00:02]}  Rc2 {[%clk 0:00:05]} 57. Bf1 {[%clk 0:00:02]}  Bh4 {[%clk 0:00:04]} 58. Be3 {[%clk 0:00:02]}  Bf6 {[%clk 0:00:05]} 59. Kf3 {[%clk 0:00:03]}  Ra2 {[%clk 0:00:04]} 60. Bc4 {[%clk 0:00:03]}  Ra3 {[%clk 0:00:05]} 61. Bd5 {[%clk 0:00:03]}  Bg5 {[%clk 0:00:04]} 62. Rb7 {[%clk 0:00:03]}  Bxe3 {[%clk 0:00:04]} 63. fxe3 {[%clk 0:00:03]}  Kf6 {[%clk 0:00:04]} 64. Rb6+ {[%clk 0:00:03]}  e6 {[%clk 0:00:05]} 65. Bc6 {[%clk 0:00:02]}  Ra1 {[%clk 0:00:05]} 66. Kf2 {[%clk 0:00:01]}  Ra2+ {[%clk 0:00:05]} 67. Kg3 {[%clk 0:00:02]}  Rd2 {[%clk 0:00:05]} 68. Rb7 {[%clk 0:00:02]}  Rd8 {[%clk 0:00:02]} 69. Bd7 {[%clk 0:00:02]}  Ra8 {[%clk 0:00:01]} 70. Bb5 {[%clk 0:00:02]}  Rd8 {[%clk 0:00:01]} 71. Kf4 {[%clk 0:00:02]}  Ra8 {[%clk 0:00:02]} 72. e4 {[%clk 0:00:01]}  g5+ {[%clk 0:00:02]} 73. Ke3 {[%clk 0:00:02]}  Ra3+ {[%clk 0:00:02]} 74. Bd3 {[%clk 0:00:02]}  Kg6 {[%clk 0:00:02]} 75. e5+ {[%clk 0:00:02]}  Kg7 {[%clk 0:00:02]} 76. Ke4 {[%clk 0:00:02]}  Ra4+ {[%clk 0:00:02]} 77. Ke3 {[%clk 0:00:02]}  Ra5 {[%clk 0:00:02]} 78. Kd4 {[%clk 0:00:02]}  Ra4+ {[%clk 0:00:02]} 79. Bc4 {[%clk 0:00:02]}  Kg6 {[%clk 0:00:02]} 80. Rb8 {[%clk 0:00:01]}  Ra3 {[%clk 0:00:01]} 81. Rg8+ {[%clk 0:00:02]}  Kf5 {[%clk 0:00:02]} 82. Bd3+ {[%clk 0:00:01]}  Kf4 {[%clk 0:00:02]} 83. Rg7 {[%clk 0:00:02]}  Ra4+ {[%clk 0:00:03]} 84. Bc4 {[%clk 0:00:02]}  Ra7 {[%clk 0:00:03]} 85. Bxe6 {[%clk 0:00:01]}  Ra4+ {[%clk 0:00:02]} 86. Bc4 {[%clk 0:00:02]}  g4 {[%clk 0:00:03]} 87. hxg4 {[%clk 0:00:02]}  hxg4 {[%clk 0:00:03]} 88. Rxf7+ {[%clk 0:00:03]}  Kg3 {[%clk 0:00:04]} 89. e6 {[%clk 0:00:04]}  Ra8 {[%clk 0:00:04]} 90. e7 {[%clk 0:00:04]}  Re8 {[%clk 0:00:03]} 91. Bb5 {[%clk 0:00:04]}  Rxe7 {[%clk 0:00:03]} 92. Rxe7 {[%clk 0:00:05]}  Kf2 {[%clk 0:00:03]} 93. Rg7 {[%clk 0:00:05]}  g3 {[%clk 0:00:00]} 94. Bc6 {[%clk 0:00:06]} 1-0


[Site "https://www.chess.com"]